bitfinex/quotes_BTCUSD_20230114
["timestamp","ask_amount","ask_price","bid_price","bid_amount"]
[1673720767856,2.066,20713.0,20712.0,2.24806551]
[1673720768345,2.066,20713.0,20712.0,1.94806551]
[1673720768605,2.066,20713.0,20712.0,2.24806551]
[1673720769122,2.066,20713.0,20712.0,1.47205212]
[1673720769372,2.066,20713.0,20711.0,0.14436467]
[1673720769373,2.25672595,20713.0,20711.0,0.14436467]
[1673720769620,0.320162,20712.0,20710.0,0.36140658]
[1673720769865,0.320162,20712.0,20709.0,1.13337335]
[1673720769866,0.211034,20711.0,20709.0,0.48288]
[1673720770116,0.19072595,20711.0,20708.0,0.62825827]
[1673720770379,0.19072595,20711.0,20708.0,1.11116127]
[1673720770634,0.19072595,20711.0,20704.0,0.37803396]
[1673720770635,1.19650718,20710.0,20704.0,0.37803396]
[1673720770886,1.19650718,20710.0,20706.0,0.00097171]
[1673720770887,1.36755995,20709.0,20706.0,0.00097171]
[1673720771141,0.420162,20708.0,20706.0,0.00097171]
[1673720771400,0.211034,20707.0,20704.0,0.01662738]
[1673720771657,0.320162,20706.0,20704.0,0.01662738]
[1673720771915,0.1,20709.0,20704.0,0.01662738]
[1673720772178,0.320162,20708.0,20704.0,0.01662738]
[1673720772432,0.311034,20707.0,20704.0,0.01662738]
[1673720772722,0.320162,20706.0,20704.0,0.01662738]
[1673720772967,0.211034,20705.0,20704.0,0.01662738]
[1673720774492,0.217034,20705.0,20704.0,0.01662738]
[1673720775748,0.211034,20705.0,20704.0,0.01662738]
[1673720776001,0.277034,20705.0,20704.0,0.01662738]
[1673720776270,0.211034,20705.0,20704.0,0.01662738]
[1673720776521,0.217034,20705.0,20704.0,0.01662738]
[1673720777272,0.211034,20705.0,20704.0,0.01662738]
[1673720777527,0.277034,20705.0,20704.0,0.01662738]
[1673720777773,0.768509,20705.0,20704.0,0.01662738]
[1673720778530,0.702509,20705.0,20704.0,0.01662738]
[1673720778797,1.351484,20705.0,20703.0,0.01694795]
[1673720779044,0.420162,20704.0,20703.0,0.01694795]
[1673720779303,1.57688395,20704.0,20703.0,0.01694795]
[1673720779556,0.01571594,20702.0,20701.0,0.01662738]
[1673720779814,1.87511089,20702.0,20701.0,0.01662738]
[1673720780074,2.58484388,20702.0,20701.0,0.01662738]
[1673720780336,2.08438494,20702.0,20701.0,0.01662738]
[1673720780579,2.48484388,20702.0,20701.0,0.01662738]
[1673720780831,2.17038494,20702.0,20701.0,0.01662738]
[1673720781083,2.03438494,20702.0,20701.0,0.01662738]
[1673720781331,2.17038494,20702.0,20701.0,0.01662738]
[1673720782086,2.33438494,20702.0,20701.0,0.01662738]
[1673720782341,2.17038494,20702.0,20701.0,0.01662738]
[1673720782837,2.30638494,20702.0,20701.0,0.01662738]
[1673720783098,2.03438494,20702.0,20701.0,0.01662738]
[1673720783394,2.17038494,20702.0,20701.0,0.01662738]
[1673720783927,2.47038494,20702.0,20701.0,0.01662738]
[1673720784161,2.43438494,20702.0,20701.0,0.01662738]
[1673720784913,2.93484388,20702.0,20701.0,0.01662738]
[1673720785169,2.78617173,20702.0,20701.0,0.01662738]
[1673720785904,2.92217173,20702.0,20701.0,0.01662738]
[1673720786150,3.42263067,20702.0,20701.0,0.01662738]
[1673720786433,3.55863067,20702.0,20701.0,0.01662738]
[1673720786679,3.88663067,20702.0,20701.0,0.01662738]
[1673720786924,4.02263067,20702.0,20701.0,0.01662738]
[1673720787180,3.88663067,20702.0,20701.0,0.01662738]
[1673720787428,4.02363067,20702.0,20701.0,0.01662738]
[1673720787688,0.00393244,20700.0,20699.0,0.00749038]
[1673720787943,1.88186744,20700.0,20699.0,0.00749038]
[1673720788194,2.18186744,20700.0,20699.0,0.00749038]
[1673720788954,1.78186744,20700.0,20699.0,0.00749038]
[1673720789200,1.91786744,20700.0,20699.0,0.00749038]
[1673720789697,2.36786744,20700.0,20699.0,0.00749038]
[1673720790228,2.66786744,20700.0,20699.0,0.00749038]
[1673720790489,3.37662338,20700.0,20699.0,0.00749038]
[1673720790741,2.26786744,20700.0,20699.0,0.00749038]
[1673720791503,1.78477644,20700.0,20699.0,0.00749038]
[1673720792288,1.64877644,20700.0,20699.0,0.00749038]
[1673720792546,1.64877644,20700.0,20699.0,0.00724138]
[1673720792809,1.78477644,20700.0,20699.0,0.00724138]
[1673720793542,1.64877644,20700.0,20699.0,0.00724138]
[1673720793797,1.78477644,20700.0,20699.0,0.00724138]
[1673720794049,1.88477644,20700.0,20699.0,0.00724138]
[1673720794524,1.74877644,20700.0,20699.0,0.00724138]
[1673720794852,1.88477644,20700.0,20699.0,0.00724138]
[1673720795138,1.78477644,20700.0,20699.0,0.00724138]
[1673720796375,0.81009444,20700.0,20699.0,0.25123138]
[1673720796639,0.81009444,20700.0,20699.0,0.44929848]
[1673720796640,0.48993244,20700.0,20699.0,0.44929848]
[1673720796889,0.13993244,20700.0,20699.0,0.44929848]
[1673720797401,0.13993244,20700.0,20699.0,1.41552848]
[1673720797907,0.13993244,20700.0,20699.0,0.93241348]
[1673720797908,0.00393244,20700.0,20699.0,0.93241348]
[1673720798157,0.00393244,20700.0,20699.0,1.21846138]
[1673720798158,0.13993244,20700.0,20699.0,1.21846138]
[1673720798402,0.00393244,20700.0,20699.0,1.51746138]
[1673720798651,0.01993244,20700.0,20699.0,1.51746138]
[1673720798899,0.01571594,20702.0,20699.0,1.51746138]
[1673720799149,0.0071,20700.0,20699.0,1.52946138]
[1673720799914,0.01571594,20702.0,20699.0,1.52946138]
[1673720800164,0.01571594,20702.0,20700.0,1.1024]
[1673720800436,0.01571594,20702.0,20701.0,1.449204]
[1673720800697,0.02871594,20702.0,20701.0,1.449204]
[1673720800944,0.01571594,20702.0,20701.0,1.749204]
[1673720801202,0.02871594,20702.0,20701.0,2.449204]
[1673720801511,0.01571594,20702.0,20701.0,2.449204]
[1673720801686,0.01571594,20702.0,20701.0,2.471204]
[1673720801687,0.02558594,20702.0,20701.0,2.471204]
[1673720801963,0.02558594,20702.0,20701.0,2.73134303]
[1673720802473,0.01158594,20702.0,20701.0,2.449204]
[1673720802724,0.02558594,20702.0,20701.0,2.471204]
[1673720802996,0.02558594,20702.0,20701.0,2.66297468]
[1673720803244,0.02558594,20702.0,20701.0,2.17990668]
[1673720804004,0.01158594,20702.0,20701.0,2.15790668]
[1673720804267,0.02658594,20702.0,20701.0,2.17990668]
[1673720804517,0.01158594,20702.0,20701.0,2.15790668]
[1673720804768,0.02558594,20702.0,20701.0,2.17990668]
[1673720805021,0.01158594,20702.0,20701.0,2.15790668]
[1673720805283,0.02658594,20702.0,20701.0,2.17990668]
[1673720805542,0.02658594,20702.0,20701.0,2.15790668]
[1673720805763,0.04058594,20702.0,20701.0,2.16380668]
[1673720806015,0.01158594,20702.0,20701.0,2.14180668]
[1673720807039,0.02658594,20702.0,20701.0,2.16380668]
[1673720812527,0.015,20702.0,20701.0,2.16380668]
[1673720813303,0.015,20702.0,20701.0,1.972036]
[1673720813821,0.015,20702.0,20701.0,2.19764219]
[1673720814069,0.015,20702.0,20701.0,1.972036]
[1673720815629,0.015,20702.0,20701.0,2.2238711]
[1673720815862,0.015,20702.0,20701.0,2.21858232]
[1673720816343,0.015,20702.0,20701.0,1.972036]
[1673720817408,0.015,20702.0,20701.0,2.17735158]
[1673720817669,0.015,20702.0,20701.0,2.272036]
[1673720817918,0.015,20702.0,20701.0,2.74923769]
[1673720818941,1.0,20707.0,20701.0,2.72723769]
[1673720819196,0.015,20702.0,20701.0,2.44923769]
[1673720819454,0.015,20702.0,20701.0,2.74923769]
[1673720819942,1.19072595,20707.0,20701.0,2.72723769]
[1673720820200,1.20572595,20707.0,20701.0,2.74923769]
[1673720820411,1.20572595,20707.0,20701.0,2.44923769]
[1673720820680,1.20572595,20707.0,20701.0,2.45018948]
[1673720820936,0.19072595,20707.0,20701.0,1.42818948]
[1673720821186,0.015,20702.0,20701.0,1.45018948]
[1673720821441,0.015,20702.0,20701.0,1.75018948]
[1673720821690,0.015,20702.0,20701.0,1.74923769]
[1673720821942,0.015,20702.0,20701.0,1.44923769]
[1673720822191,0.015,20702.0,20701.0,1.74923769]
[1673720822697,0.20572595,20702.0,20701.0,1.17718725]
[1673720822955,0.015,20702.0,20701.0,0.488968]
[1673720823200,0.50045894,20705.0,20701.0,0.488968]
[1673720823450,0.482976,20705.0,20701.0,0.466968]
[1673720823696,0.482976,20705.0,20701.0,0.488968]
[1673720823697,0.015,20702.0,20701.0,0.488968]
[1673720823963,0.015,20702.0,20701.0,0.022]
[1673720824219,0.1,20704.0,20700.0,0.70463906]
[1673720824464,0.19072595,20704.0,20701.0,0.022]
[1673720824725,1.99845194,20705.0,20700.0,0.70463906]
[1673720824726,1.482995,20705.0,20700.0,0.70463906]
[1673720824984,0.320162,20704.0,20700.0,0.70463906]
[1673720825230,0.211034,20703.0,20700.0,0.70463906]
[1673720825499,0.320162,20702.0,20699.0,0.00823017]
[1673720825768,0.211034,20701.0,20699.0,0.00823017]
[1673720826019,0.19072595,20702.0,20700.0,0.021]
[1673720826267,0.1,20702.0,20699.0,0.00823017]
[1673720826555,0.320162,20701.0,20700.0,0.021]
[1673720826818,0.483047,20702.0,20699.0,0.00724138]
[1673720827081,0.325162,20701.0,20699.0,0.24843572]
[1673720827338,0.833044,20703.0,20699.0,0.23243572]
[1673720827589,0.005,20702.0,20699.0,0.24843572]
[1673720827831,0.005,20702.0,20699.0,0.02324138]
[1673720827832,0.320166,20701.0,20699.0,0.02324138]
[1673720828077,0.210966,20700.0,20699.0,0.02324138]
[1673720828284,0.105,20702.0,20699.0,0.02324138]
[1673720828546,0.1,20702.0,20699.0,0.00724138]
[1673720828801,0.320166,20701.0,20699.0,0.00724138]
[1673720829039,1.416079,20703.0,20699.0,0.00724138]
[1673720829040,1.421079,20703.0,20699.0,0.02324138]
[1673720829285,0.005,20702.0,20699.0,0.03924138]
[1673720829545,0.005,20702.0,20699.0,0.00724138]
[1673720829546,0.320166,20701.0,20699.0,0.00724138]
[1673720829802,0.1,20702.0,20699.0,0.00724138]
[1673720830060,0.583046,20702.0,20699.0,0.00724138]
[1673720830322,0.328666,20701.0,20699.0,0.00724138]
[1673720830572,1.960239,20700.0,20698.0,0.17854521]
[1673720830863,3.44582522,20700.0,20699.0,0.016]
[1673720831101,3.67839794,20700.0,20699.0,0.016]
[1673720831339,0.03204664,20699.0,20698.0,0.17854521]
[1673720831592,1.31774264,20699.0,20698.0,0.17854521]
[1673720831853,1.66774264,20699.0,20698.0,0.17854521]
[1673720832374,2.99486089,20699.0,20697.0,8.17e-06]
[1673720832636,1.46469493,20698.0,20696.0,2.294e-05]
[1673720832891,0.694127,20697.0,20696.0,2.294e-05]
[1673720833142,0.702627,20697.0,20696.0,2.294e-05]
[1673720833398,0.802627,20697.0,20696.0,2.294e-05]
[1673720833655,1.334517,20697.0,20696.0,2.294e-05]
[1673720833902,1.73856364,20697.0,20696.0,2.294e-05]
[1673720834153,2.23581998,20697.0,20696.0,2.294e-05]
[1673720834714,2.85380043,20697.0,20695.0,0.03529701]
[1673720834979,0.728666,20696.0,20695.0,0.03525365]
[1673720835189,1.395036,20696.0,20695.0,0.03525365]
[1673720835452,1.395036,20696.0,20691.0,0.28079243]
[1673720835453,0.28181408,20695.0,20691.0,0.01711109]
[1673720835708,0.28181408,20695.0,20687.0,0.20525949]
[1673720835709,1.17720169,20692.0,20687.0,0.20525949]
[1673720836002,2.04368217,20691.0,20687.0,0.20525949]
[1673720836214,1.51454689,20690.0,20687.0,0.20525949]
[1673720836481,1.51454689,20690.0,20681.0,0.22224322]
[1673720836482,0.03207,20688.0,20681.0,0.22224322]
[1673720836717,0.47720169,20682.0,20675.0,0.23197378]
[1673720836988,0.47720169,20682.0,20673.0,0.03959]
[1673720836989,0.47720169,20676.0,20673.0,0.03959]
[1673720837244,0.87889364,20675.0,20673.0,0.28459765]
[1673720837492,0.51089195,20674.0,20673.0,0.03959]
[1673720837754,0.51089195,20674.0,20673.0,0.24858]
[1673720838031,0.5319293,20679.0,20673.0,0.00459]
[1673720838032,0.4319293,20679.0,20673.0,0.00459]
[1673720838551,0.4319293,20679.0,20672.0,0.578313]
[1673720838837,0.62265525,20679.0,20678.0,0.26264635]
[1673720839087,0.4319293,20679.0,20678.0,0.26264635]
[1673720839628,0.4459293,20679.0,20678.0,0.01865635]
[1673720839933,0.7520953,20679.0,20678.0,0.01865635]
[1673720840200,0.8965953,20679.0,20678.0,0.01865635]
[1673720840721,2.01305875,20679.0,20678.0,0.01865635]
[1673720840973,2.7946776,20679.0,20678.0,0.01865635]
[1673720841371,3.7586776,20679.0,20678.0,0.01865635]
[1673720841622,3.7586776,20679.0,20671.0,0.02528674]
[1673720841623,0.1,20678.0,20671.0,0.02528674]
[1673720841839,0.967308,20676.0,20671.0,0.02528674]
[1673720842067,0.328666,20675.0,20671.0,0.02528674]
[1673720842284,0.210966,20674.0,20671.0,0.26962281]
[1673720842504,0.210966,20674.0,20671.0,0.02528674]
[1673720842505,0.19072595,20674.0,20671.0,0.02528674]
[1673720843599,0.00869,20675.0,20671.0,0.02528674]
[1673720843600,0.320166,20673.0,20671.0,0.02528674]
[1673720843871,0.68817875,20675.0,20671.0,0.02528674]
[1673720844071,0.00869,20675.0,20671.0,0.02528674]
[1673720844296,0.320166,20674.0,20671.0,0.02528674]
[1673720844507,0.219466,20673.0,20671.0,0.02528674]
[1673720844721,0.670166,20672.0,20671.0,0.02528674]
[1673720844948,0.678666,20672.0,20671.0,0.02528674]
[1673720846111,0.978666,20672.0,20671.0,0.02528674]
[1673720846324,1.078666,20672.0,20671.0,0.02528674]
[1673720846557,0.978666,20672.0,20671.0,0.02528674]
[1673720846790,0.678666,20672.0,20671.0,0.02528674]
[1673720846996,0.678666,20672.0,20671.0,0.26927674]
[1673720847218,0.483,20672.0,20671.0,0.5210302]
[1673720847430,0.483,20672.0,20671.0,0.26927674]
[1673720847431,0.35,20672.0,20671.0,0.26927674]
[1673720847843,0.135,20672.0,20671.0,0.56927674]
[1673720848093,0.35,20676.0,20671.0,1.05302874]
[1673720848341,0.35,20676.0,20671.0,2.46930774]
[1673720848600,0.35,20676.0,20671.0,2.16930774]
[1673720848845,1.0,20676.0,20672.0,0.3]
[1673720849095,1.0,20676.0,20673.0,0.967408]
[1673720849374,1.0,20678.0,20674.0,0.9]
[1673720849641,1.0,20678.0,20675.0,1.451013]
[1673720849895,0.00019,20678.0,20676.0,0.3]
[1673720850143,0.00019,20678.0,20677.0,0.967258]
[1673720850419,0.00019,20678.0,20677.0,1.267258]
[1673720850667,0.00019,20678.0,20677.0,0.967258]
[1673720850919,0.00019,20678.0,20677.0,1.267258]
[1673720851184,0.07419,20678.0,20677.0,1.876258]
[1673720851433,0.1,20685.0,20677.0,1.876258]
[1673720851687,0.35,20685.0,20678.0,1.5643]
[1673720851948,0.35,20685.0,20680.0,1.450668]
[1673720852195,0.35,20685.0,20681.0,0.3]
[1673720852461,0.35,20685.0,20682.0,0.483507]
[1673720852715,0.19072595,20685.0,20680.0,0.48450685]
[1673720853009,0.1,20689.0,20680.0,0.00095085]
[1673720853010,0.19072595,20684.0,20680.0,0.00095085]
[1673720853749,0.19072595,20684.0,20680.0,0.12295085]
[1673720854041,0.8334,20687.0,20681.0,0.19170484]
[1673720854250,0.006,20684.0,20681.0,0.19170484]
[1673720854509,0.0085,20686.0,20681.0,0.19170484]
[1673720854760,0.35,20685.0,20681.0,0.19170484]
[1673720855272,0.54072595,20685.0,20681.0,0.72423784]
[1673720855522,0.320166,20684.0,20681.0,0.72423784]
[1673720855770,0.210966,20683.0,20681.0,0.24070484]
[1673720856024,0.35,20684.0,20681.0,0.19170484]
[1673720856272,0.35,20684.0,20681.0,0.24070484]
[1673720856527,0.0085,20683.0,20682.0,0.23190977]
[1673720857546,0.0085,20683.0,20682.0,0.23050977]
[1673720857804,0.0145,20683.0,20682.0,0.23050977]
[1673720858053,0.0145,20683.0,20682.0,1.267024]
[1673720858054,0.006,20683.0,20682.0,1.267024]
[1673720858323,0.006,20683.0,20682.0,1.067024]
[1673720858583,0.006,20683.0,20682.0,1.367024]
[1673720858840,0.006,20683.0,20682.0,0.967024]
[1673720859119,0.006,20683.0,20682.0,1.267024]
[1673720859355,0.006,20683.0,20682.0,0.967024]
[1673720859609,0.48334,20690.0,20682.0,0.967024]
[1673720859871,0.006,20683.0,20682.0,1.45856854]
[1673720860122,0.006,20683.0,20682.0,0.967024]
[1673720860375,0.006,20683.0,20682.0,2.34422569]
[1673720860631,0.19072595,20690.0,20682.0,2.34422569]
[1673720860884,0.19072595,20690.0,20683.0,0.49154454]
[1673720860885,0.19072595,20689.0,20683.0,0.49154454]
[1673720861142,0.19072595,20689.0,20684.0,0.966901]
[1673720861401,0.48933,20690.0,20684.0,0.966901]
[1673720861402,0.48333,20690.0,20684.0,0.966901]
[1673720861655,0.35,20689.0,20685.0,0.22291075]
[1673720861914,0.35,20689.0,20686.0,0.966829]
[1673720862938,0.35,20690.0,20686.0,0.966829]
[1673720863209,0.006,20689.0,20686.0,0.977829]
[1673720863708,0.19072595,20689.0,20686.0,0.966829]
[1673720863963,0.833284,20692.0,20686.0,0.966829]
[1673720864223,0.0085,20691.0,20687.0,0.24057895]
[1673720864472,0.0085,20691.0,20686.0,0.966829]
[1673720864724,0.35,20690.0,20686.0,0.966829]
[1673720864996,0.0085,20689.0,20687.0,0.19925403]
[1673720865256,0.0085,20689.0,20687.0,0.19425403]
[1673720865468,0.0085,20689.0,20687.0,0.67764603]
[1673720866554,0.0085,20689.0,20687.0,0.68164603]
[1673720866555,0.0145,20689.0,20687.0,0.68164603]
[1673720866797,0.0145,20689.0,20687.0,0.970787]
[1673720867013,0.0145,20689.0,20688.0,0.18895401]
[1673720867267,0.0145,20689.0,20688.0,0.67232601]
[1673720867513,0.006,20689.0,20688.0,1.15569801]
[1673720867761,0.006,20689.0,20688.0,0.966744]
[1673720868223,0.006,20689.0,20688.0,1.18128901]
[1673720868467,0.1893968,20691.0,20688.0,1.18128901]
[1673720868712,0.006,20689.0,20688.0,1.19028901]
[1673720868965,0.006,20689.0,20688.0,1.18128901]
[1673720869217,0.006,20689.0,20688.0,1.19028901]
[1673720869466,0.1893968,20691.0,20688.0,1.18128901]
[1673720869717,0.71816552,20690.0,20688.0,0.009]
[1673720869953,0.71816552,20690.0,20686.0,0.0009589]
[1673720869954,0.56893866,20689.0,20686.0,0.0009589]
[1673720870200,0.210966,20688.0,20686.0,0.24564573]
[1673720870482,0.320166,20687.0,20686.0,0.24468683]
[1673720870741,0.328666,20687.0,20686.0,0.24468683]
[1673720870986,0.0085,20687.0,20686.0,0.24468683]
[1673720871229,0.0085,20687.0,20684.0,0.483447]
[1673720871485,0.19072595,20687.0,20684.0,0.71804861]
[1673720871734,0.19072595,20686.0,20683.0,0.00097651]
[1673720871975,0.328666,20685.0,20683.0,0.00097651]
[1673720872226,0.320166,20684.0,20683.0,0.24920373]
[1673720872470,0.0085,20685.0,20684.0,0.127]
[1673720872739,0.24096413,20685.0,20683.0,0.24822722]
[1673720872979,0.24096413,20685.0,20683.0,0.37522722]
[1673720873738,0.59096413,20685.0,20683.0,0.127]
[1673720873998,0.59096413,20685.0,20683.0,0.18777531]
[1673720874246,0.013,20684.0,20683.0,0.18777531]
[1673720874497,0.3585,20685.0,20684.0,0.24051761]
[1673720874745,0.08598887,20685.0,20683.0,0.009]
[1673720875002,0.19144315,20685.0,20681.0,0.69345166]
[1673720875298,0.012,20684.0,20683.0,0.009]
[1673720875551,0.0085,20684.0,20681.0,0.69345166]
[1673720875787,0.20344315,20685.0,20683.0,0.009]
[1673720876048,0.20344315,20685.0,20681.0,0.69345166]
[1673720876298,0.8776111,20685.0,20681.0,0.69345166]
[1673720877061,0.68688515,20685.0,20682.0,0.20546041]
[1673720877311,0.18435937,20684.0,20682.0,0.20546041]
[1673720878069,0.18435937,20684.0,20682.0,0.20946041]
[1673720878292,0.18435937,20684.0,20682.0,0.20546041]
[1673720878863,0.18435937,20684.0,20682.0,0.20946041]
[1673720878864,0.19735937,20684.0,20682.0,0.20946041]
[1673720880395,0.013,20684.0,20683.0,0.22062138]
[1673720880653,0.013,20684.0,20683.0,0.966976]
[1673720881672,0.35,20687.0,20683.0,1.266976]
[1673720881938,0.35,20689.0,20684.0,0.4]
[1673720882195,0.35,20689.0,20684.0,1.36869443]
[1673720882458,0.35,20689.0,20686.0,1.450206]
[1673720882720,0.6577134,20693.0,20687.0,0.3]
[1673720882977,0.6577134,20693.0,20688.0,1.450067]
[1673720883753,0.3077134,20693.0,20688.0,1.45102045]
[1673720884026,0.08182658,20693.0,20688.0,1.45102045]
[1673720884276,0.27355253,20693.0,20689.0,0.3]
[1673720884537,0.08182658,20693.0,20690.0,0.96664]
[1673720884777,0.09382658,20693.0,20690.0,0.96664]
[1673720885020,0.08182658,20693.0,20691.0,0.25739874]
[1673720885282,0.0231234,20692.0,20691.0,0.74069074]
[1673720885531,0.0231234,20692.0,20691.0,1.22399174]
[1673720886544,0.02304254,20692.0,20691.0,1.22399174]
[1673720888348,0.03504254,20692.0,20691.0,1.22399174]
[1673720888891,0.03504254,20692.0,20691.0,1.17686745]
[1673720889655,0.03504254,20692.0,20691.0,0.966593]
[1673720889928,0.02304254,20692.0,20691.0,1.21822722]
[1673720890165,0.02404254,20692.0,20691.0,1.092593]
[1673720890415,0.02304254,20692.0,20691.0,0.966593]
[1673720890683,0.03504254,20692.0,20691.0,0.483292]
[1673720892517,1.51249049,20692.0,20688.0,0.00095345]
[1673720892774,0.41019195,20691.0,20688.0,0.00095345]
[1673720893025,0.420166,20690.0,20688.0,0.00095345]
[1673720893288,0.19922595,20691.0,20685.0,0.7234152]
[1673720893289,0.219466,20689.0,20685.0,0.7234152]
[1673720893608,0.51089195,20688.0,20685.0,0.72436779]
[1673720893801,0.19072595,20688.0,20685.0,0.72436779]
[1673720894052,0.19072595,20688.0,20685.0,0.24094679]
[1673720894303,0.0085,20687.0,20685.0,0.00095259]
[1673720894548,0.320166,20686.0,20685.0,0.00095259]
[1673720894798,0.0085,20687.0,20684.0,1.37223359]
[1673720895058,0.19922595,20687.0,20683.0,0.483468]
[1673720895307,0.320166,20686.0,20682.0,0.483489]
[1673720895590,0.0085,20685.0,20682.0,0.73438277]
[1673720895847,0.19922595,20685.0,20682.0,0.73438277]
[1673720896388,0.0085,20685.0,20683.0,0.1944215]
[1673720896608,0.21663804,20686.0,20684.0,0.7270854]
[1673720897112,0.833353,20689.0,20684.0,0.7270854]
[1673720897446,0.20618273,20687.0,20684.0,1.2105504]
[1673720897672,0.001,20685.0,20684.0,1.2105504]
[1673720897915,0.001,20685.0,20684.0,1.21153159]
[1673720898180,0.001,20685.0,20684.0,1.2105504]
[1673720898432,0.1770735,20686.0,20684.0,1.2105504]
[1673720898680,0.1840735,20686.0,20684.0,1.2105504]
[1673720898935,0.1770735,20686.0,20684.0,1.2105504]
[1673720899187,0.007,20685.0,20684.0,1.2105504]
[1673720899446,0.1770735,20686.0,20684.0,1.2105504]
[1673720899686,0.1840735,20686.0,20684.0,1.2105504]
[1673720899940,0.1770735,20686.0,20684.0,1.2105504]
[1673720900196,0.007,20685.0,20684.0,1.2105504]
[1673720900480,0.007,20685.0,20684.0,0.7270854]
[1673720901495,0.1770735,20686.0,20684.0,0.7270854]
[1673720901748,0.1840735,20686.0,20684.0,0.7270854]
[1673720902008,0.19072595,20685.0,20681.0,0.483516]
[1673720902257,0.51089195,20684.0,20680.0,0.00096551]
[1673720902538,0.76154836,20682.0,20680.0,0.23056566]
[1673720902769,0.320166,20681.0,20680.0,0.00096551]
[1673720903027,0.76154836,20682.0,20679.0,0.483581]
[1673720903278,0.76154836,20682.0,20681.0,0.25399]
[1673720903783,0.94637759,20682.0,20681.0,0.01]
[1673720904311,0.94637759,20682.0,20680.0,0.483556]
[1673720904578,0.23435053,20681.0,20680.0,0.004]
[1673720904829,0.55451653,20681.0,20678.0,0.23966254]
[1673720905115,0.42507648,20681.0,20678.0,0.23966254]
[1673720905636,0.42507648,20681.0,20680.0,0.004]
[1673720905637,0.92097293,20681.0,20680.0,0.004]
[1673720905884,0.17832191,20680.0,20677.0,0.70465232]
[1673720906138,0.219466,20679.0,20677.0,0.22102532]
[1673720906388,0.219466,20679.0,20678.0,0.064]
[1673720906389,0.0085,20679.0,20678.0,0.064]
[1673720906648,0.1085,20679.0,20678.0,0.064]
[1673720906894,1.26638995,20679.0,20678.0,0.064]
[1673720907142,1.69583,20679.0,20678.0,0.064]
[1673720907396,1.69583,20679.0,20676.0,0.00095819]
[1673720907646,0.510966,20678.0,20676.0,0.00095819]
[1673720907922,1.5036596,20677.0,20675.0,0.01968039]
[1673720908169,0.44966041,20676.0,20675.0,0.01968039]
[1673720908414,0.94181241,20676.0,20675.0,0.01968039]
[1673720908663,0.703118,20676.0,20675.0,0.01968039]
[1673720908915,1.24568902,20676.0,20675.0,0.01968039]
[1673720909171,1.24568902,20676.0,20675.0,0.02768039]
[1673720909431,1.053118,20676.0,20675.0,0.01968039]
[1673720909686,1.2838124,20676.0,20675.0,0.01968039]
[1673720910201,1.7674644,20676.0,20675.0,0.01968039]
[1673720910452,2.1614644,20676.0,20675.0,0.02768039]
[1673720910701,2.0674644,20676.0,20675.0,0.01968039]
[1673720910957,2.1614644,20676.0,20675.0,0.02768039]
[1673720911208,2.64466609,20676.0,20675.0,0.01968039]
[1673720911472,2.98069799,20676.0,20675.0,0.02768039]
[1673720911731,2.88669799,20676.0,20675.0,0.01968039]
[1673720911988,2.98069799,20676.0,20675.0,0.02768039]
[1673720912265,2.98069799,20676.0,20675.0,0.01968039]
[1673720912266,2.88669799,20676.0,20675.0,0.01968039]
[1673720912512,1.044618,20676.0,20675.0,0.01968039]
[1673720912811,2.044618,20676.0,20675.0,0.01968039]
[1673720913030,1.044618,20676.0,20675.0,0.01968039]
[1673720913285,0.654966,20676.0,20675.0,0.24771484]
[1673720913540,0.654966,20676.0,20675.0,0.23971484]
[1673720913791,0.188,20676.0,20675.0,0.24771484]
[1673720914040,0.57598917,20677.0,20675.0,0.23971484]
[1673720914299,0.042,20676.0,20675.0,0.24371484]
[1673720914812,0.136,20676.0,20675.0,0.25171484]
[1673720915062,0.1025,20676.0,20675.0,0.02768039]
[1673720915835,0.4525,20676.0,20675.0,0.25650068]
[1673720916086,0.444,20676.0,20675.0,0.25650068]
[1673720916348,0.444,20676.0,20675.0,0.24850068]
[1673720916349,0.35,20676.0,20675.0,0.24850068]
[1673720916680,0.35,20676.0,20675.0,0.98703039]
[1673720916884,0.094,20676.0,20675.0,0.8607863]
[1673720917137,0.136,20676.0,20675.0,0.7647863]
[1673720917397,0.042,20676.0,20675.0,0.99103039]
[1673720917653,0.35,20680.0,20675.0,1.37703039]
[1673720917903,0.35,20680.0,20675.0,0.98703039]
[1673720917904,0.009,20676.0,20675.0,0.98703039]
[1673720918167,0.009,20676.0,20675.0,0.99103039]
[1673720918168,0.051,20676.0,20675.0,0.99103039]
[1673720918424,0.051,20676.0,20675.0,1.29103039]
[1673720918678,0.19072595,20680.0,20675.0,1.39103039]
[1673720918945,0.35,20682.0,20676.0,0.4]
[1673720919210,0.35,20682.0,20677.0,1.92803169]
[1673720919477,0.35,20682.0,20679.0,0.1]
[1673720919705,0.1,20689.0,20680.0,1.450674]
[1673720919706,0.18847273,20685.0,20680.0,1.450674]
[1673720920479,0.18847273,20685.0,20680.0,1.45166287]
[1673720920741,0.18847273,20685.0,20681.0,0.3]
[1673720920988,0.19072595,20689.0,20682.0,0.967014]
[1673720921242,0.17854637,20688.0,20682.0,2.34267117]
[1673720921497,0.77412295,20687.0,20682.0,1.37565717]
[1673720921780,0.328666,20686.0,20682.0,1.37565717]
[1673720922070,0.19922595,20686.0,20682.0,1.37565717]
[1673720922294,0.0085,20686.0,20682.0,1.37565717]
[1673720922538,0.491919,20686.0,20682.0,1.37565717]
[1673720922800,0.0085,20686.0,20682.0,1.37565717]
[1673720923585,0.20691191,20685.0,20683.0,0.26617068]
[1673720923841,0.0085,20684.0,20683.0,0.26617068]
[1673720925613,0.0085,20684.0,20683.0,0.27117068]
[1673720926379,0.0085,20685.0,20683.0,0.488488]
[1673720926634,0.35,20688.0,20684.0,0.3]
[1673720926881,1.0,20692.0,20685.0,0.966874]
[1673720926882,0.35,20689.0,20685.0,0.966874]
[1673720927647,0.35,20689.0,20685.0,0.96676172]
[1673720927908,0.19558631,20690.0,20685.0,0.96676172]
[1673720928159,0.21724457,20689.0,20685.0,0.96676172]
[1673720928664,0.483307,20691.0,20685.0,0.96676172]
[1673720928946,0.19020453,20690.0,20686.0,0.22144945]
[1673720929203,0.19870453,20690.0,20686.0,0.70485345]
[1673720929731,0.19870453,20690.0,20686.0,1.18827145]
[1673720929985,0.19072595,20691.0,20686.0,0.966822]